[Event "Live Chess"]
[Site "Chess.com"]
[Date "2023.05.20"]
[Round "-"]
[White "diana21strabt"]
[Black "maxwalden"]
[Result "1-0"]
[WhiteElo "1695"]
[BlackElo "1211"]
[TimeControl "300"]
[EndTime "11:46:14 PDT"]
[Termination "diana21strabt won by resignation"]

1. e4 {[%clk 0:04:58.5]} 1... c5 {[%clk 0:04:58.1]} 2. Nf3 {[%clk 0:04:57.3]}
2... d6 {[%clk 0:04:56.4]} 3. d4 {[%clk 0:04:56.2]} 3... cxd4 {[%clk 0:04:54.2]}
4. Nxd4 {[%clk 0:04:55.3]} 4... Nf6 {[%clk 0:04:53.8]} 5. Nc3 {[%clk 0:04:54.1]}
5... g6 {[%clk 0:04:53.4]} 6. Be3 {[%clk 0:04:51.6]} 6... a6 {[%clk 0:04:52.1]}
7. Bc4 {[%clk 0:04:49]} 7... b5 {[%clk 0:04:49.8]} 8. Bb3 {[%clk 0:04:47.7]}
8... Bb7 {[%clk 0:04:46.8]} 9. f3 {[%clk 0:04:45.2]} 9... Nc6 {[%clk 0:04:44.6]}
10. O-O {[%clk 0:04:43]} 10... Bg7 {[%clk 0:04:41.1]} 11. Nxc6 {[%clk
0:04:38.6]} 11... Bxc6 {[%clk 0:04:36.2]} 12. Bd5 {[%clk 0:04:37.9]} 12... Nxd5
{[%clk 0:04:34]} 13. exd5 {[%clk 0:04:34.7]} 13... Bd7 {[%clk 0:04:31.4]} 14.
Bd4 {[%clk 0:04:33.7]} 14... Bxd4+ {[%clk 0:04:23.5]} 15. Qxd4 {[%clk
0:04:32.4]} 15... O-O {[%clk 0:04:23.1]} 16. f4 {[%clk 0:04:26.5]} 16... Qc7
{[%clk 0:04:21]} 17. f5 {[%clk 0:04:24.6]} 17... Bxf5 {[%clk 0:04:11.9]} 18.
Rxf5 {[%clk 0:03:59.5]} 18... gxf5 {[%clk 0:04:09.9]} 19. Qh4 {[%clk 0:03:54.1]}
19... Qc5+ {[%clk 0:04:04.5]} 20. Kh1 {[%clk 0:03:52.7]} 20... Kh8 {[%clk
0:04:00.7]} 21. Qxe7 {[%clk 0:03:49.3]} 21... Rae8 {[%clk 0:03:57.1]} 22. Qf6+
{[%clk 0:03:48]} 22... Kg8 {[%clk 0:03:53.7]} 23. Qxf5 {[%clk 0:03:43.6]} 23...
Re5 {[%clk 0:03:43.4]} 24. Qg4+ {[%clk 0:03:36.7]} 24... Kh8 {[%clk 0:03:40.6]}
25. Rd1 {[%clk 0:03:30.1]} 25... b4 {[%clk 0:03:26.9]} 26. Ne4 {[%clk
0:03:06.9]} 26... Qxc2 {[%clk 0:03:22.1]} 27. Nxd6 {[%clk 0:02:52.6]} 27... Qe2
{[%clk 0:02:43]} 28. Qd4 {[%clk 0:02:35.9]} 28... Qe1+ {[%clk 0:02:26.7]} 29.
Rxe1 {[%clk 0:02:34.2]} 1-0

[Event "Live Chess"]
[Site "Chess.com"]
[Date "2023.05.20"]
[Round "-"]
[White "mattihelenius2"]
[Black "domrobson"]
[Result "0-1"]
[WhiteElo "490"]
[BlackElo "1746"]
[TimeControl "300"]
[EndTime "11:46:16 PDT"]
[Termination "domrobson won by checkmate"]

1. d4 {[%clk 0:04:57.4]} 1... e5 {[%clk 0:04:59.6]} 2. e4 {[%clk 0:04:54]} 2...
exd4 {[%clk 0:04:57.7]} 3. Qxd4 {[%clk 0:04:53.9]} 3... Nc6 {[%clk 0:04:56.4]}
4. Qd1 {[%clk 0:04:51.9]} 4... Nf6 {[%clk 0:04:54.8]} 5. Bb5 {[%clk 0:04:50.9]}
5... Nxe4 {[%clk 0:04:53.1]} 6. Qe2 {[%clk 0:04:39]} 6... Qe7 {[%clk 0:04:51.4]}
7. Bxc6 {[%clk 0:04:36.3]} 7... dxc6 {[%clk 0:04:47.8]} 8. Nc3 {[%clk
0:04:35.5]} 8... Nxc3 {[%clk 0:04:46.4]} 9. Qxe7+ {[%clk 0:04:33.9]} 9... Bxe7
{[%clk 0:04:44.8]} 10. bxc3 {[%clk 0:04:32.9]} 10... O-O {[%clk 0:04:43.8]} 11.
Nf3 {[%clk 0:04:30.7]} 11... Bf6 {[%clk 0:04:41.5]} 12. O-O {[%clk 0:04:29.7]}
12... Bxc3 {[%clk 0:04:39.9]} 13. Rb1 {[%clk 0:04:26.3]} 13... b5 {[%clk
0:04:38.8]} 14. Bd2 {[%clk 0:04:24.1]} 14... Bxd2 {[%clk 0:04:36.6]} 15. Nxd2
{[%clk 0:04:24]} 15... Be6 {[%clk 0:04:34.7]} 16. Rbe1 {[%clk 0:04:22.9]} 16...
Bxa2 {[%clk 0:04:33.1]} 17. Ne4 {[%clk 0:04:19.6]} 17... Bc4 {[%clk 0:04:31.9]}
18. Nc5 {[%clk 0:04:18.3]} 18... Bxf1 {[%clk 0:04:30.6]} 19. Rxf1 {[%clk
0:04:17.9]} 19... a5 {[%clk 0:04:28.5]} 20. Nd7 {[%clk 0:04:16.9]} 20... Rfd8
{[%clk 0:04:27.1]} 21. Ne5 {[%clk 0:04:12.7]} 21... f6 {[%clk 0:04:25.3]} 22.
Nxc6 {[%clk 0:04:10.2]} 22... Rd2 {[%clk 0:04:24.9]} 23. Ne7+ {[%clk 0:04:06.7]}
23... Kf7 {[%clk 0:04:23.2]} 24. Nf5 {[%clk 0:04:05.3]} 24... Rxc2 {[%clk
0:04:21.4]} 25. Nd4 {[%clk 0:04:03.7]} 25... Rc5 {[%clk 0:04:18.8]} 26. Re1
{[%clk 0:03:57.9]} 26... a4 {[%clk 0:04:15.7]} 27. Re6 {[%clk 0:03:50.2]} 27...
Rc1+ {[%clk 0:04:13]} 28. Re1 {[%clk 0:03:46.7]} 28... Rxe1# {[%clk 0:04:12.9]}
0-1

[Event "Live Chess"]
[Site "Chess.com"]
[Date "2023.05.20"]
[Round "-"]
[White "ameetghasi100"]
[Black "onemoretime1975"]
[Result "1/2-1/2"]
[WhiteElo "2704"]
[BlackElo "1931"]
[TimeControl "300"]
[EndTime "11:46:17 PDT"]
[Termination "Game drawn - timeout vs insufficient material"]

1. d4 {[%clk 0:04:58.3]} 1... d5 {[%clk 0:04:55.3]} 2. c3 {[%clk 0:04:58.2]}
2... Nf6 {[%clk 0:04:49.7]} 3. Nf3 {[%clk 0:04:52.9]} 3... c6 {[%clk 0:04:45.9]}
4. Bg5 {[%clk 0:04:51]} 4... Nbd7 {[%clk 0:04:39.6]} 5. Nbd2 {[%clk 0:04:49.4]}
5... e6 {[%clk 0:04:33.2]} 6. e4 {[%clk 0:04:47.4]} 6... Be7 {[%clk 0:04:28.6]}
7. e5 {[%clk 0:04:45.7]} 7... Ng8 {[%clk 0:04:25.6]} 8. h4 {[%clk 0:04:44]} 8...
h6 {[%clk 0:04:23.2]} 9. Be3 {[%clk 0:04:42]} 9... c5 {[%clk 0:04:18.4]} 10. Bd3
{[%clk 0:04:39.9]} 10... cxd4 {[%clk 0:04:09.3]} 11. cxd4 {[%clk 0:04:37.3]}
11... Nb6 {[%clk 0:04:03.5]} 12. Rc1 {[%clk 0:04:35]} 12... Bd7 {[%clk
0:04:01.9]} 13. Qe2 {[%clk 0:04:33.3]} 13... a6 {[%clk 0:03:57.6]} 14. g3 {[%clk
0:04:31]} 14... Bb4 {[%clk 0:03:50.1]} 15. O-O {[%clk 0:04:29.8]} 15... Bxd2
{[%clk 0:03:47.6]} 16. Bxd2 {[%clk 0:04:29.1]} 16... Ne7 {[%clk 0:03:47.1]} 17.
Nh2 {[%clk 0:04:25.1]} 17... O-O {[%clk 0:03:40.6]} 18. Qg4 {[%clk 0:04:16.3]}
18... f5 {[%clk 0:03:19.1]} 19. exf6 {[%clk 0:04:14.3]} 19... Rxf6 {[%clk
0:03:16.1]} 20. Qe2 {[%clk 0:04:13.4]} 20... Nf5 {[%clk 0:03:03.6]} 21. Ng4
{[%clk 0:04:10.6]} 21... Nxd4 {[%clk 0:02:30.5]} 22. Qe3 {[%clk 0:04:06.7]}
22... Nf3+ {[%clk 0:02:24.6]} 23. Kh1 {[%clk 0:04:01.4]} 23... d4 {[%clk
0:02:15.4]} 24. Nxf6+ {[%clk 0:03:58.5]} 24... Qxf6 {[%clk 0:02:11.7]} 25. Qf4
{[%clk 0:03:57.9]} 25... Qxf4 {[%clk 0:01:36.4]} 26. Bxf4 {[%clk 0:03:57.8]}
26... Bc6 {[%clk 0:01:29.6]} 27. Be4 {[%clk 0:03:57]} 27... Bxe4 {[%clk
0:01:27.1]} 28. Bc7 {[%clk 0:03:49]} 28... Nd2+ {[%clk 0:01:20.2]} 29. Kg1
{[%clk 0:03:46.8]} 29... Nxf1 {[%clk 0:01:15.2]} 30. Bxb6 {[%clk 0:03:45]} 30...
Nd2 {[%clk 0:01:08.3]} 31. Rc7 {[%clk 0:03:43.5]} 31... Nf3+ {[%clk 0:01:01.8]}
32. Kf1 {[%clk 0:03:42.6]} 32... Bc6 {[%clk 0:00:57.9]} 33. Ke2 {[%clk
0:03:39.6]} 33... Rf8 {[%clk 0:00:52.5]} 34. Bc5 {[%clk 0:03:34.6]} 34... Rf7
{[%clk 0:00:50.3]} 35. Rc8+ {[%clk 0:03:29.9]} 35... Kh7 {[%clk 0:00:49.1]} 36.
Rd8 {[%clk 0:03:29.4]} 36... g6 {[%clk 0:00:45.9]} 37. Bxd4 {[%clk 0:03:12.7]}
37... Nxd4+ {[%clk 0:00:43.4]} 38. Rxd4 {[%clk 0:03:12.6]} 38... Bd5 {[%clk
0:00:41.9]} 39. b3 {[%clk 0:03:10.8]} 39... Rc7 {[%clk 0:00:38.5]} 40. Rd2
{[%clk 0:03:10.3]} 40... Kg7 {[%clk 0:00:36.5]} 41. Ke3 {[%clk 0:03:09.8]} 41...
b5 {[%clk 0:00:34]} 42. Kd4 {[%clk 0:03:08.7]} 42... Kf6 {[%clk 0:00:32.4]} 43.
Re2 {[%clk 0:03:05.6]} 43... Rc1 {[%clk 0:00:27.9]} 44. Kd3 {[%clk 0:03:03.8]}
44... Ra1 {[%clk 0:00:24.3]} 45. Kc3 {[%clk 0:03:02.8]} 45... Rc1+ {[%clk
0:00:22.7]} 46. Kb4 {[%clk 0:03:02]} 46... Rc6 {[%clk 0:00:20.4]} 47. Ka5 {[%clk
0:02:59.2]} 47... e5 {[%clk 0:00:19.5]} 48. Rd2 {[%clk 0:02:58.2]} 48... Ke6
{[%clk 0:00:18.8]} 49. Re2 {[%clk 0:02:56.7]} 49... e4 {[%clk 0:00:17.7]} 50. f3
{[%clk 0:02:55.7]} 50... Ke5 {[%clk 0:00:16.8]} 51. fxe4 {[%clk 0:02:55]} 51...
Bxe4 {[%clk 0:00:16]} 52. Rd2 {[%clk 0:02:52]} 52... Rd6 {[%clk 0:00:15.1]} 53.
Rxd6 {[%clk 0:02:49.6]} 53... Kxd6 {[%clk 0:00:13.6]} 54. Kxa6 {[%clk
0:02:49.1]} 54... Bd3 {[%clk 0:00:13]} 55. Kb6 {[%clk 0:02:47.7]} 55... Ke5
{[%clk 0:00:12.5]} 56. Kc5 {[%clk 0:02:45.7]} 56... Ke4 {[%clk 0:00:11.9]} 57.
Kd6 {[%clk 0:02:42.2]} 57... Bf1 {[%clk 0:00:11.2]} 58. Ke6 {[%clk 0:02:41.1]}
58... Kf3 {[%clk 0:00:10.8]} 59. Kf6 {[%clk 0:02:40.5]} 59... Kxg3 {[%clk
0:00:10.4]} 60. Kxg6 {[%clk 0:02:39.3]} 60... Kxh4 {[%clk 0:00:10.1]} 61. Kxh6
{[%clk 0:02:38.9]} 61... Kg3 {[%clk 0:00:09.7]} 62. Kg5 {[%clk 0:02:36.4]} 62...
Kf3 {[%clk 0:00:09.3]} 63. Kf6 {[%clk 0:02:35.7]} 63... Ke3 {[%clk 0:00:09]} 64.
Ke5 {[%clk 0:02:35.5]} 64... Kd3 {[%clk 0:00:07.4]} 65. Kd5 {[%clk 0:02:35]}
65... Kc3 {[%clk 0:00:06.9]} 66. Kc5 {[%clk 0:02:31.6]} 66... Kb2 {[%clk
0:00:06.3]} 67. b4 {[%clk 0:02:27.3]} 67... Kxa2 {[%clk 0:00:04.4]} 68. Kb6
{[%clk 0:02:26.9]} 68... Ka3 {[%clk 0:00:03.7]} 69. Ka5 {[%clk 0:02:26.2]} 69...
Kb3 {[%clk 0:00:03.1]} 70. Kb6 {[%clk 0:02:25.3]} 70... Kxb4 {[%clk 0:00:02.8]}
71. Kc6 {[%clk 0:02:24.4]} 71... Kc4 {[%clk 0:00:02.1]} 72. Kd6 {[%clk
0:02:22.8]} 72... b4 {[%clk 0:00:01.5]} 73. Ke5 {[%clk 0:02:22.7]} 73... b3
{[%clk 0:00:00.9]} 74. Kf4 {[%clk 0:02:22]} 74... b2 {[%clk 0:00:00.6]} 75. Kg3
{[%clk 0:02:20.7]} 1/2-1/2

[Event "Live Chess"]
[Site "Chess.com"]
[Date "2023.05.20"]
[Round "-"]
[White "LL220284LL"]
[Black "ReceptiveCamel"]
[Result "1-0"]
[WhiteElo "2397"]
[BlackElo "626"]
[TimeControl "300"]
[EndTime "11:46:22 PDT"]
[Termination "LL220284LL won by checkmate"]

1. d4 {[%clk 0:04:58.3]} 1... d5 {[%clk 0:04:52.5]} 2. c4 {[%clk 0:04:52.4]}
2... dxc4 {[%clk 0:04:49.6]} 3. Nf3 {[%clk 0:04:51.4]} 3... Bf5 {[%clk
0:04:45.6]} 4. Nc3 {[%clk 0:04:49.1]} 4... Nc6 {[%clk 0:04:42.8]} 5. e4 {[%clk
0:04:47.9]} 5... Bg4 {[%clk 0:04:39.5]} 6. Be3 {[%clk 0:04:43.3]} 6... Bxf3
{[%clk 0:04:36.9]} 7. gxf3 {[%clk 0:04:41.5]} 7... e6 {[%clk 0:04:35.8]} 8. Bxc4
{[%clk 0:04:39.6]} 8... Bb4 {[%clk 0:04:31.9]} 9. Qb3 {[%clk 0:04:38.6]} 9...
Bxc3+ {[%clk 0:04:30.1]} 10. bxc3 {[%clk 0:04:37.7]} 10... Nf6 {[%clk
0:04:28.7]} 11. Qxb7 {[%clk 0:04:35.4]} 11... Rb8 {[%clk 0:04:19.9]} 12. Qxc6+
{[%clk 0:04:34]} 12... Qd7 {[%clk 0:04:17.6]} 13. Qxd7+ {[%clk 0:04:31.1]} 13...
Nxd7 {[%clk 0:04:16]} 14. Bb3 {[%clk 0:04:29.4]} 14... O-O {[%clk 0:04:12.9]}
15. Kd2 {[%clk 0:04:29]} 15... Rxb3 {[%clk 0:04:11.1]} 16. axb3 {[%clk
0:04:27.9]} 16... Rb8 {[%clk 0:04:09.5]} 17. b4 {[%clk 0:04:27.4]} 17... a5
{[%clk 0:04:06.6]} 18. Rxa5 {[%clk 0:04:26.8]} 18... Nb6 {[%clk 0:04:01.3]} 19.
Kd3 {[%clk 0:04:24.8]} 19... c5 {[%clk 0:03:55.2]} 20. bxc5 {[%clk 0:04:23.2]}
20... Nd7 {[%clk 0:03:50.5]} 21. Rha1 {[%clk 0:04:20.9]} 21... g6 {[%clk
0:03:45.5]} 22. Ra8 {[%clk 0:04:19.3]} 22... Rxa8 {[%clk 0:03:42.4]} 23. Rxa8+
{[%clk 0:04:19.2]} 23... Kg7 {[%clk 0:03:41.1]} 24. c6 {[%clk 0:04:16]} 24...
Nb6 {[%clk 0:03:39.5]} 25. c7 {[%clk 0:04:15]} 25... Nxa8 {[%clk 0:03:37.2]} 26.
c8=Q {[%clk 0:04:13.7]} 26... Nb6 {[%clk 0:03:35.3]} 27. Qc7 {[%clk 0:04:12.3]}
27... Na4 {[%clk 0:03:33.7]} 28. Qe5+ {[%clk 0:04:08.8]} 28... f6 {[%clk
0:03:30.9]} 29. Qc7+ {[%clk 0:04:07.3]} 29... Kh8 {[%clk 0:03:28.1]} 30. Bh6
{[%clk 0:04:06.8]} 30... Nb2+ {[%clk 0:03:24.4]} 31. Kc2 {[%clk 0:04:05.5]}
31... Na4 {[%clk 0:03:21.1]} 32. Qg7# {[%clk 0:04:05.4]} 1-0

[Event "Live Chess"]
[Site "Chess.com"]
[Date "2023.05.20"]
[Round "-"]
[White "Driftboard"]
[Black "JohanKjeldahl"]
[Result "0-1"]
[WhiteElo "688"]
[BlackElo "1802"]
[TimeControl "300"]
[EndTime "11:46:27 PDT"]
[Termination "JohanKjeldahl won by checkmate"]

1. e4 {[%clk 0:04:53.7]} 1... c5 {[%clk 0:04:57.1]} 2. Nf3 {[%clk 0:04:52.2]}
2... e6 {[%clk 0:04:55.4]} 3. Nc3 {[%clk 0:04:51.1]} 3... Nc6 {[%clk 0:04:53.5]}
4. Bb5 {[%clk 0:04:48.8]} 4... Nge7 {[%clk 0:04:50.9]} 5. Bxc6 {[%clk
0:04:47.5]} 5... Nxc6 {[%clk 0:04:49.4]} 6. d3 {[%clk 0:04:46.4]} 6... a6 {[%clk
0:04:47.9]} 7. O-O {[%clk 0:04:45.1]} 7... b5 {[%clk 0:04:46.9]} 8. Be3 {[%clk
0:04:38.3]} 8... Bb7 {[%clk 0:04:44.2]} 9. a3 {[%clk 0:04:36.3]} 9... Qc7 {[%clk
0:04:42.8]} 10. h3 {[%clk 0:04:34.5]} 10... Be7 {[%clk 0:04:41.8]} 11. b4 {[%clk
0:04:29.1]} 11... cxb4 {[%clk 0:04:39]} 12. axb4 {[%clk 0:04:24.8]} 12... Bxb4
{[%clk 0:04:35]} 13. Na2 {[%clk 0:04:20.3]} 13... Be7 {[%clk 0:04:28.5]} 14. d4
{[%clk 0:04:12.2]} 14... O-O {[%clk 0:04:23.2]} 15. d5 {[%clk 0:04:09.6]} 15...
Nd8 {[%clk 0:04:17.4]} 16. e5 {[%clk 0:04:05.5]} 16... Bxd5 {[%clk 0:04:15.1]}
17. Nd4 {[%clk 0:03:54.8]} 17... d6 {[%clk 0:04:06.5]} 18. exd6 {[%clk
0:03:50.6]} 18... Bxd6 {[%clk 0:04:05.5]} 19. Qd2 {[%clk 0:03:44.6]} 19... Rc8
{[%clk 0:04:01.3]} 20. Bf4 {[%clk 0:03:41]} 20... Bxf4 {[%clk 0:03:58.4]} 21.
Qd3 {[%clk 0:03:39.2]} 21... Bc4 {[%clk 0:03:54.9]} 22. Qe4 {[%clk 0:03:30.7]}
22... Bxf1 {[%clk 0:03:46.9]} 23. Rxf1 {[%clk 0:03:26.5]} 23... Qe5 {[%clk
0:03:44.8]} 24. Qxe5 {[%clk 0:03:23.9]} 24... Bxe5 {[%clk 0:03:42.4]} 25. Nf3
{[%clk 0:03:22.2]} 25... Bf6 {[%clk 0:03:40]} 26. Nb4 {[%clk 0:03:19.8]} 26...
a5 {[%clk 0:03:35]} 27. Nd3 {[%clk 0:03:17.2]} 27... Rxc2 {[%clk 0:03:31.7]} 28.
Nfe5 {[%clk 0:03:11.2]} 28... Bxe5 {[%clk 0:03:28.6]} 29. Nxe5 {[%clk
0:03:06.4]} 29... Nb7 {[%clk 0:03:22.1]} 30. Nd7 {[%clk 0:03:04]} 30... Rd8
{[%clk 0:03:19.7]} 31. Ne5 {[%clk 0:03:00.9]} 31... a4 {[%clk 0:03:15.2]} 32.
Nf3 {[%clk 0:02:56.4]} 32... b4 {[%clk 0:03:10.8]} 33. Ne1 {[%clk 0:02:55.4]}
33... Rc1 {[%clk 0:03:09]} 34. Nf3 {[%clk 0:02:51.7]} 34... Rdd1 {[%clk
0:03:05.2]} 35. Nh2 {[%clk 0:02:48.3]} 35... Rxf1+ {[%clk 0:03:02.9]} 36. Nxf1
{[%clk 0:02:46.9]} 36... a3 {[%clk 0:03:01.1]} 37. f3 {[%clk 0:02:44.7]} 37...
a2 {[%clk 0:02:59.4]} 38. Kf2 {[%clk 0:02:44]} 38... Rxf1+ {[%clk 0:02:57.1]}
39. Kxf1 {[%clk 0:02:43.1]} 39... a1=Q+ {[%clk 0:02:55.5]} 40. Kf2 {[%clk
0:02:42.8]} 40... b3 {[%clk 0:02:50.4]} 41. Kg3 {[%clk 0:02:42.2]} 41... b2
{[%clk 0:02:47.3]} 42. Kg4 {[%clk 0:02:33.3]} 42... b1=Q {[%clk 0:02:44.6]} 43.
g3 {[%clk 0:02:31.1]} 43... Qg6+ {[%clk 0:02:41.2]} 44. Kf4 {[%clk 0:02:26.9]}
44... Qc1+ {[%clk 0:02:37.4]} 45. Ke5 {[%clk 0:02:23]} 45... Qc5+ {[%clk
0:02:31.4]} 46. Kf4 {[%clk 0:02:16.8]} 46... Qgf5# {[%clk 0:02:28.1]} 0-1

[Event "Live Chess"]
[Site "Chess.com"]
[Date "2023.05.20"]
[Round "-"]
[White "ramses-IIG"]
[Black "LiamBellwood"]
[Result "0-1"]
[WhiteElo "797"]
[BlackElo "2091"]
[TimeControl "300"]
[EndTime "11:46:28 PDT"]
[Termination "LiamBellwood won by resignation"]

1. e4 {[%clk 0:04:56.5]} 1... e6 {[%clk 0:04:59.9]} 2. Nf3 {[%clk 0:04:54.7]}
2... d5 {[%clk 0:04:59.8]} 3. e5 {[%clk 0:04:52.8]} 3... c5 {[%clk 0:04:59]} 4.
d4 {[%clk 0:04:52.7]} 4... Nc6 {[%clk 0:04:58.9]} 5. dxc5 {[%clk 0:04:51.1]}
5... Bxc5 {[%clk 0:04:57.9]} 6. Qd3 {[%clk 0:04:41.1]} 6... Nge7 {[%clk
0:04:54.6]} 7. Be3 {[%clk 0:04:40.4]} 7... Qb6 {[%clk 0:04:43.4]} 8. b3 {[%clk
0:04:34.2]} 8... Bxe3 {[%clk 0:04:39.9]} 9. fxe3 {[%clk 0:04:31.9]} 9... Nf5
{[%clk 0:04:38.4]} 10. e4 {[%clk 0:04:26.1]} 10... Nb4 {[%clk 0:04:27.5]} 11.
Qe2 {[%clk 0:03:52.9]} 11... dxe4 {[%clk 0:04:12.7]} 12. Qxe4 {[%clk 0:03:49.8]}
12... Bd7 {[%clk 0:04:03.4]} 13. c3 {[%clk 0:03:48.7]} 13... Nd5 {[%clk
0:03:49.4]} 14. Bc4 {[%clk 0:03:37.1]} 14... Bc6 {[%clk 0:03:48.2]} 15. Qg4
{[%clk 0:03:26.6]} 15... Nde3 {[%clk 0:03:42.9]} 16. Qf4 {[%clk 0:02:42.4]}
16... Nxg2+ {[%clk 0:03:42.1]} 0-1

[Event "Live Chess"]
[Site "Chess.com"]
[Date "2023.05.20"]
[Round "-"]
[White "djw60"]
[Black "Missedidea"]
[Result "1-0"]
[WhiteElo "2113"]
[BlackElo "1716"]
[TimeControl "300"]
[EndTime "11:46:30 PDT"]
[Termination "djw60 won by resignation"]

1. g3 {[%clk 0:04:56.2]} 1... Nf6 {[%clk 0:04:56.8]} 2. Bg2 {[%clk 0:04:54.5]}
2... g6 {[%clk 0:04:55.4]} 3. Nf3 {[%clk 0:04:52.8]} 3... Bg7 {[%clk 0:04:54.4]}
4. O-O {[%clk 0:04:52.4]} 4... O-O {[%clk 0:04:53.4]} 5. d4 {[%clk 0:04:51.7]}
5... d6 {[%clk 0:04:52.1]} 6. c4 {[%clk 0:04:50.5]} 6... Nc6 {[%clk 0:04:50.6]}
7. b3 {[%clk 0:04:48.3]} 7... Nd7 {[%clk 0:04:42.2]} 8. Bb2 {[%clk 0:04:45.9]}
8... e5 {[%clk 0:04:37.9]} 9. e3 {[%clk 0:04:44.1]} 9... e4 {[%clk 0:04:30]} 10.
Nfd2 {[%clk 0:04:39.8]} 10... f5 {[%clk 0:04:27.5]} 11. f3 {[%clk 0:04:36]}
11... exf3 {[%clk 0:04:20.9]} 12. Nxf3 {[%clk 0:04:34]} 12... Qe7 {[%clk
0:04:16.9]} 13. Qe2 {[%clk 0:04:23.4]} 13... Re8 {[%clk 0:04:14.7]} 14. Re1
{[%clk 0:04:20.1]} 14... Nf6 {[%clk 0:04:02.5]} 15. Nc3 {[%clk 0:04:11.7]} 15...
Ng4 {[%clk 0:03:55.7]} 16. Nd5 {[%clk 0:04:09.5]} 16... Qf7 {[%clk 0:03:53.4]}
17. Ng5 {[%clk 0:03:48]} 17... Qf8 {[%clk 0:03:51.2]} 18. h3 {[%clk 0:03:37]}
18... Nxe3 {[%clk 0:03:38.4]} 19. Nxe3 {[%clk 0:03:33.1]} 19... Nxd4 {[%clk
0:03:30.7]} 20. Qd2 {[%clk 0:03:25.4]} 20... h6 {[%clk 0:03:20.7]} 21. Bxd4
{[%clk 0:03:16.9]} 21... hxg5 {[%clk 0:03:18.4]} 22. Bd5+ {[%clk 0:03:14.6]}
22... Be6 {[%clk 0:03:16.2]} 23. Bxg7 {[%clk 0:03:09.9]} 23... Qxg7 {[%clk
0:03:07]} 24. Rad1 {[%clk 0:03:06.1]} 24... c6 {[%clk 0:03:00.5]} 25. Nxf5
{[%clk 0:02:54.2]} 25... gxf5 {[%clk 0:02:56.3]} 26. Bxe6+ {[%clk 0:02:52.2]}
26... Kh8 {[%clk 0:02:42.8]} 27. Bxf5 {[%clk 0:02:50.4]} 27... Re5 {[%clk
0:02:33]} 28. Rxe5 {[%clk 0:02:46.4]} 28... Qxe5 {[%clk 0:02:27.8]} 29. Qd4
{[%clk 0:02:45]} 29... Rf8 {[%clk 0:02:22.8]} 30. Qxe5+ {[%clk 0:02:42.9]} 30...
dxe5 {[%clk 0:02:21.8]} 31. g4 {[%clk 0:02:42.1]} 31... Rf7 {[%clk 0:02:16.9]}
32. Kf2 {[%clk 0:02:40.6]} 32... Kg7 {[%clk 0:02:15.1]} 33. Ke3 {[%clk
0:02:39.3]} 33... Re7 {[%clk 0:02:14.1]} 34. Ke4 {[%clk 0:02:38.1]} 34... b5
{[%clk 0:02:10.3]} 35. c5 {[%clk 0:02:35.4]} 35... a5 {[%clk 0:02:08.4]} 36. Rd6
{[%clk 0:02:33.7]} 36... a4 {[%clk 0:02:05.9]} 37. Rxc6 {[%clk 0:02:32.3]} 37...
axb3 {[%clk 0:02:04.5]} 38. axb3 {[%clk 0:02:31.2]} 38... Ra7 {[%clk 0:02:00.2]}
39. Rb6 {[%clk 0:02:29.2]} 39... Ra5 {[%clk 0:01:58]} 40. b4 {[%clk 0:02:26.8]}
40... Ra3 {[%clk 0:01:56.4]} 41. Rxb5 {[%clk 0:02:24.3]} 41... Rxh3 {[%clk
0:01:54.7]} 42. c6 {[%clk 0:02:20.8]} 42... Rc3 {[%clk 0:01:50.4]} 43. Rc5
{[%clk 0:02:19.7]} 43... Rb3 {[%clk 0:01:49.1]} 44. c7 {[%clk 0:02:17.5]} 44...
Rxb4+ {[%clk 0:01:47.7]} 45. Kxe5 {[%clk 0:02:14.9]} 1-0